bitfinex-derivatives/quotes_SOLF0:USTF0_20251006
["timestamp","ask_amount","ask_price","bid_price","bid_amount"]
[1759784573370,5.80013449,234.19,234.17,7.35]
[1759784576168,1.95893449,234.19,234.15,4.70849708]
[1759784576570,1.95893449,234.19,234.16,7.35]
[1759784576765,1.95893449,234.19,234.15,4.70849708]
[1759784577472,1.95893449,234.19,234.16,7.35]
[1759784578064,1.95893449,234.19,234.15,4.70849708]
[1759784578674,1.95893449,234.19,234.16,7.35]
[1759784579171,1.95893449,234.19,234.17,7.35]
[1759784580175,1.95893449,234.19,234.15,4.70849708]
[1759784580371,1.95893449,234.19,234.16,7.35]
[1759784580772,1.95893449,234.19,234.15,4.70849708]
[1759784580974,1.95893449,234.19,234.16,7.35]
[1759784581168,1.95893449,234.19,234.17,7.35]
[1759784581376,1.95893449,234.19,234.17,12.05849708]
[1759784581777,13.59013449,234.19,234.17,4.70849708]
[1759784582578,7.79,234.29,234.19,7.35]
[1759784582772,1.95893449,234.27,234.21,4.78633157]
[1759784582975,1.95893449,234.27,234.22,7.35]
[1759784583175,3.8402,234.25,234.22,7.35]
[1759784583374,7.79,234.22,234.18,4.78633157]
[1759784583678,60.1509,234.27,234.16,4.78633157]
[1759784583679,7.79,234.19,234.16,4.78633157]
[1759784583874,1.95893449,234.17,234.16,4.78633157]
[1759784584176,7.79,234.17,234.16,4.78633157]
[1759784584474,11.6314,234.17,234.15,4.78633157]
[1759784584680,7.79,234.16,234.13,4.78633157]
[1759784584884,1.95893449,234.15,234.12,4.78633157]
[1759784585179,9.74893449,234.15,234.12,4.78633157]
[1759784585973,9.74893449,234.15,234.12,12.13633157]
[1759784585974,1.95893449,234.15,234.12,12.13633157]
[1759784586569,3.8414,234.17,234.12,12.13633157]
[1759784586768,1.95893449,234.15,234.12,12.13633157]
[1759784587079,7.79,234.14,234.11,4.78633157]
[1759784587279,1.95893449,234.12,234.09,12.13633157]
[1759784587474,1.95893449,234.15,234.1,4.78633157]
[1759784587675,1.95893449,234.15,234.13,7.35]
[1759784588379,9.74893449,234.15,234.12,4.78633157]
[1759784589072,9.74893449,234.15,234.11,7.35]
[1759784590380,59.7418,234.23,234.08,34.6]
[1759784590381,1.95893449,234.12,234.09,12.13633157]
[1759784590778,1.95893449,234.12,234.09,7.35]
[1759784590984,9.74893449,234.12,234.09,7.35]
[1759784592284,1.95893449,234.12,234.09,7.35]
[1759784593877,9.74893449,234.12,234.09,7.35]
[1759784594275,1.95893449,234.14,234.09,7.35]
[1759784594475,1.95893449,234.14,234.08,46.73633157]
[1759784595981,1.95893449,234.14,234.08,41.95]
[1759784598385,3.8417,234.15,234.08,41.95]
[1759784598685,59.7418,234.23,234.08,41.95]
[1759784598686,9.64893449,234.2,234.11,7.88]
[1759784598881,1.95893449,234.21,234.12,12.66633157]
[1759784599081,1.95893449,234.24,234.14,1.95893449]
[1759784599279,59.6985,234.4,234.14,1.95893449]
[1759784599280,1.95893449,234.29,234.17,1.95893449]
[1759784599480,1.95893449,234.29,234.2,7.88]
[1759784601588,1.95893449,234.29,234.2,11.7208]
[1759784603185,3.8396,234.28,234.2,7.88]
[1759784604081,7.69,234.3,234.2,7.88]
[1759784604279,1.95893449,234.29,234.2,7.88]
[1759784605588,1.95893449,234.29,234.21,3.8406]
[1759784605789,1.95893449,234.29,234.22,7.88]
[1759784609292,5.79843449,234.29,234.22,7.88]
[1759784610689,11.5297,234.28,234.22,7.88]
[1759784617102,3.8399,234.27,234.19,4.78633157]
[1759784617395,9.36893449,234.26,234.19,4.78633157]
[1759784617895,9.36893449,234.26,234.2,7.78]
[1759784621094,7.41,234.26,234.2,7.78]
[1759784621294,11.25,234.26,234.2,7.78]
[1759784621486,7.41,234.26,234.2,7.78]
[1759784621895,3.8404,234.24,234.2,7.78]
[1759784622095,7.41,234.23,234.2,7.78]
[1759784622293,3.06176952,234.26,234.18,4.78633157]
[1759784622495,7.41,234.25,234.16,7.78]
[1759784622790,3.06176952,234.22,234.13,4.78633157]
[1759784622996,7.41,234.21,234.13,4.78633157]
[1759784624299,11.2514,234.17,234.13,12.56633157]
[1759784624798,11.2514,234.17,234.13,7.78]
[1759784625193,11.2514,234.17,234.12,4.78633157]
[1759784625393,11.2514,234.17,234.13,7.78]
[1759784625998,11.2514,234.17,234.12,4.78633157]
[1759784626202,11.2514,234.17,234.13,7.78]
[1759784626589,7.41,234.17,234.12,4.78633157]
[1759784626791,7.41,234.17,234.11,315.56633157]
[1759784627991,7.41,234.17,234.13,7.35]
[1759784628195,7.41,234.17,234.12,4.78633157]
[1759784628399,7.41,234.17,234.13,7.35]
[1759784628598,7.41,234.17,234.12,4.78633157]
[1759784628894,7.41,234.17,234.13,7.35]
[1759784629400,7.41,234.17,234.12,4.78633157]
[1759784630202,7.41,234.17,234.13,7.35]
[1759784630699,7.41,234.17,234.13,4.78633157]
[1759784630897,7.41,234.17,234.14,7.35]
[1759784631292,7.41,234.17,234.16,3.58037832]
[1759784631798,7.48,234.22,234.15,111.97]
[1759784631993,7.48,234.23,234.16,3.58020904]
[1759784633605,7.48,234.19,234.15,115.55020904]
[1759784634300,11.3212,234.19,234.15,3.58020904]
[1759784634505,3.06176952,234.2,234.14,3.58020904]
[1759784634701,7.48,234.19,234.14,3.58020904]
[1759784635704,11.3216,234.17,234.13,3.58020904]
[1759784635905,7.48,234.16,234.13,3.58020904]
[1759784636106,7.48,234.16,234.13,10.93020904]
[1759784637207,7.48,234.16,234.14,3.58020904]
[1759784638110,3.8417,234.15,234.13,10.93020904]
[1759784639705,3.8414,234.17,234.14,10.93020904]
[1759784639914,11.3214,234.17,234.14,10.93020904]
[1759784640106,11.3214,234.17,234.15,3.58020904]
[1759784640306,11.3214,234.17,234.14,10.93020904]
[1759784642015,11.3214,234.17,234.15,3.58020904]
[1759784642318,10.54176952,234.23,234.15,3.58020904]
[1759784643712,11.3213,234.18,234.15,3.58020904]
[1759784646320,11.3213,234.18,234.15,10.93020904]
[1759784648217,11.3213,234.18,234.15,3.58020904]
[1759784648421,3.8413,234.18,234.16,10.93020904]
[1759784648614,3.8409,234.2,234.17,7.35]
[1759784649019,3.8409,234.2,234.16,3.58020904]
[1759784649219,3.8409,234.2,234.17,7.35]
[1759784649914,3.8409,234.2,234.16,3.58020904]
[1759784650215,3.8409,234.2,234.17,7.35]
[1759784650419,3.8409,234.2,234.16,3.58020904]
[1759784650713,3.8409,234.2,234.17,7.35]
[1759784651821,3.8412,234.19,234.17,7.35]
[1759784652216,3.8412,234.19,234.17,10.93020904]
[1759784656526,7.48,234.18,234.17,3.58020904]
[1759784657424,7.48,234.16,234.15,3.58020904]
[1759784658026,11.3217,234.15,234.14,3.58020904]
[1759784658229,11.3217,234.15,234.1,7.35]
[1759784658230,7.43,234.17,234.12,3.58020904]
[1759784658423,59.7557,234.18,234.12,3.58020904]
[1759784658622,7.43,234.17,234.12,3.58020904]
[1759784658826,7.43,234.17,234.11,3.58020904]
[1759784659127,11.272,234.13,234.11,3.58020904]
[1759784661123,3.8424,234.11,234.1,7.35]
[1759784664225,3.8424,234.11,234.08,4.78512477]
[1759784664430,11.2724,234.11,234.08,4.78512477]
[1759784664731,11.2724,234.11,234.09,7.97]
[1759784664928,3.8424,234.11,234.09,7.97]
[1759784666132,3.8424,234.11,234.09,12.75512477]
[1759784668629,3.8424,234.11,234.1,7.97]
[1759784671435,3.8427,234.1,234.08,4.78512477]
[1759784671733,3.8427,234.1,234.08,12.75512477]
[1759784672632,3.8427,234.1,234.09,7.97]
[1759784676141,3.8422,234.13,234.09,7.66]
[1759784676437,3.8422,234.13,234.11,11.25057754]
[1759784676638,3.8422,234.13,234.11,3.59057754]
[1759784676939,7.64,234.17,234.04,104.4]
[1759784676940,3.8415,234.17,234.12,4.78512477]
[1759784677235,3.8415,234.17,234.13,4.78512477]
[1759784677540,10.70176952,234.25,234.15,7.66]
[1759784677736,1.06754647,234.24,234.17,11.24998873]
[1759784678139,10.70176952,234.25,234.19,3.58998873]
[1759784678636,3.8409,234.21,234.19,3.58998873]
[1759784679039,3.8409,234.21,234.19,11.24998873]
[1759784681442,3.8409,234.21,234.19,3.58998873]
[1759784681443,7.64,234.2,234.19,3.58998873]
[1759784681746,7.64,234.2,234.18,3.58998873]
[1759784682245,3.8411,234.19,234.18,3.58998873]
[1759784682446,7.64,234.25,234.18,11.24998873]
[1759784683046,9.60016479,234.25,234.18,11.24998873]
[1759784683642,9.60016479,234.25,234.19,3.58998873]
[1759784683847,3.8409,234.21,234.19,3.58998873]
[1759784684043,3.8409,234.21,234.19,11.24998873]
[1759784684348,3.8411,234.19,234.18,3.58998873]
[1759784684943,3.8411,234.19,234.18,11.24998873]
[1759784685145,3.8411,234.19,234.18,7.66]
[1759784690250,3.8407,234.21,234.16,4.78512477]
[1759784690453,3.8407,234.21,234.2,11.0265933]
[1759784693151,3.8407,234.21,234.19,3.5865933]
[1759784693550,3.8407,234.21,234.19,11.0265933]
[1759784693756,11.7307,234.21,234.19,11.0265933]
[1759784695453,3.8407,234.21,234.19,3.5865933]
[1759784695658,3.8407,234.21,234.19,11.0265933]
[1759784696859,3.8407,234.21,234.2,7.44]
[1759784697554,3.8407,234.21,234.19,3.5865933]
[1759784697956,3.8407,234.21,234.19,11.0265933]
[1759784702866,3.8407,234.21,234.2,7.44]
[1759784705467,3.8405,234.23,234.18,7.44]
[1759784705663,3.8405,234.23,234.22,7.44]
[1759784710273,3.8401,234.25,234.22,7.44]
[1759784710474,3.8401,234.25,234.24,7.44]
[1759784711670,3.8397,234.28,234.23,5.54311402]
[1759784711870,3.8397,234.28,234.25,7.44]
[1759784712173,3.8397,234.28,234.24,3.58294923]
[1759784712473,3.8397,234.28,234.26,7.44]
[1759784712770,3.8397,234.28,234.25,3.58294923]
[1759784712973,3.8397,234.28,234.26,7.44]
[1759784713474,3.8397,234.28,234.25,3.58294923]
[1759784713664,3.8397,234.28,234.26,7.44]
[1759784714370,3.8397,234.28,234.25,3.58294923]
[1759784714666,3.8397,234.28,234.26,7.44]
[1759784714864,3.8397,234.28,234.25,3.58294923]
[1759784715069,3.8397,234.28,234.26,7.44]
[1759784715467,3.8397,234.28,234.25,3.58294923]
[1759784716073,3.8397,234.28,234.26,7.44]
[1759784716571,3.8397,234.28,234.25,3.58294923]
[1759784716971,3.8397,234.28,234.26,7.44]
[1759784717267,3.8397,234.28,234.25,3.58294923]
[1759784717965,3.8397,234.28,234.26,7.44]
[1759784718172,3.8397,234.28,234.26,3.58294923]
[1759784718373,3.8397,234.28,234.27,7.66]
[1759784727290,7.72,234.27,234.26,3.58294923]
[1759784728184,11.5599,234.26,234.25,3.58294923]
[1759784729588,3.8402,234.24,234.23,7.66]
[1759784734587,3.84,234.26,234.21,4.78512477]
[1759784734789,3.84,234.26,234.25,11.23828096]
[1759784736789,3.84,234.26,234.25,11.23929943]
[1759784737091,3.84,234.26,234.25,11.23929805]
[1759784737692,3.84,234.26,234.25,7.66]
[1759784737892,3.84,234.26,234.25,11.24048392]
[1759784738094,3.84,234.26,234.25,7.66]
[1759784741093,3.84,234.26,234.24,4.78512477]
[1759784741094,3.8396,234.28,234.24,4.78512477]
[1759784741292,3.8396,234.28,234.27,7.3]
[1759784743194,3.8393,234.3,234.25,4.78512477]
[1759784743394,3.8393,234.3,234.28,7.3]
[1759784744694,3.8393,234.3,234.28,10.86696555]
[1759784744894,3.8393,234.3,234.29,7.3]
[1759784747696,11.8393,234.3,234.29,7.3]
[1759784748091,3.8393,234.3,234.29,7.3]
[1759784748292,3.8393,234.3,234.29,10.86696555]
[1759784748497,3.839,234.32,234.3,7.95]
[1759784749198,11.759,234.32,234.3,7.95]
[1759784750401,11.759,234.32,234.3,11.51696555]
[1759784754304,3.8386,234.35,234.31,7.95]
[1759784754499,3.8386,234.35,234.34,3.56768245]
[1759784754806,7.92,234.41,234.34,7.95]
[1759784754999,7.92,234.41,234.35,3.56830905]
[1759784756202,7.92,234.36,234.35,3.56830905]
[1759784756405,7.92,234.36,234.34,3.56830905]
[1759784757109,67.618,234.4,234.34,3.56830905]
[1759784758116,7.92,234.4,234.34,3.56830905]
[1759784759010,7.92,234.4,234.35,7.95]
[1759784759411,7.92,234.41,234.34,7.95]
[1759784759611,3.8382,234.37,234.34,7.95]
[1759784759812,7.92,234.41,234.33,11.51830905]
[1759784760512,62.74799967,234.44,234.33,11.51830905]
[1759784760709,7.92,234.41,234.33,11.51830905]
[1759784761715,3.8383,234.37,234.34,7.95]
[1759784762111,11.7583,234.37,234.34,7.95]
[1759784762814,3.8383,234.37,234.33,3.56830905]
[1759784763212,3.8383,234.37,234.34,7.95]
[1759784763407,3.8383,234.37,234.33,3.56830905]
[1759784763716,3.8378,234.39,234.34,7.95]
[1759784764615,7.92,234.43,234.35,3.56830905]
[1759784764813,7.92,234.43,234.37,7.95]
[1759784765110,3.8371,234.44,234.38,7.95]
[1759784765306,3.8371,234.44,234.39,7.95]
[1759784765510,7.92,234.51,234.4,7.95]
[1759784765710,1.06645507,234.5,234.4,7.95]
[1759784765916,7.92,234.49,234.4,7.95]
[1759784766115,3.8368,234.45,234.39,3.56830905]
[1759784766610,3.8368,234.45,234.4,7.95]
[1759784766816,3.8368,234.45,234.39,3.56830905]
[1759784767014,3.8368,234.45,234.4,7.95]
[1759784767212,3.8368,234.45,234.41,7.95]
[1759784767408,3.8368,234.45,234.4,7.95]
[1759784767713,3.8368,234.45,234.39,3.56830905]
[1759784768110,3.8368,234.45,234.4,7.95]
[1759784768518,3.8368,234.45,234.39,3.56830905]
[1759784768715,3.8368,234.45,234.4,7.95]
[1759784769117,3.8372,234.43,234.39,3.56830905]
[1759784769320,3.8372,234.43,234.36,48.76512477]
[1759784769321,3.8372,234.43,234.4,7.95]
[1759784769509,3.8372,234.43,234.39,7.95]
[1759784769713,3.8372,234.43,234.39,3.56830905]
[1759784770207,3.8372,234.43,234.4,7.95]
[1759784770411,3.8372,234.43,234.39,3.56830905]
[1759784771317,3.8372,234.43,234.38,3.56830905]
[1759784771518,3.8372,234.43,234.39,7.95]
[1759784771711,3.8372,234.43,234.35,4.78512477]
[1759784771712,67.6073,234.44,234.35,7.95]
[1759784771918,7.92,234.41,234.35,7.95]
[1759784772117,10.98019967,234.41,234.35,7.95]
[1759784772313,3.8381,234.37,234.35,7.95]
[1759784772614,7.92,234.4,234.31,11.51830905]
[1759784773221,3.8384,234.36,234.32,7.95]
[1759784773423,3.8384,234.36,234.3,3.56830905]
[1759784773623,3.8384,234.36,234.31,7.95]
[1759784773824,3.8384,234.36,234.3,11.51830905]
[1759784774527,3.8386,234.35,234.3,3.56830905]
[1759784774730,7.92,234.37,234.29,3.56830905]
[1759784774923,59.7083,234.36,234.29,3.56830905]
[1759784775124,67.63,234.35,234.27,7.95]
[1759784775930,3.8394,234.3,234.27,7.95]
[1759784776425,3.8394,234.3,234.26,322.69247007]
[1759784776628,3.8394,234.3,234.27,7.95]
[1759784776816,3.8394,234.3,234.26,322.69247007]
[1759784777220,3.8394,234.3,234.27,7.95]
[1759784777928,3.8394,234.3,234.26,322.69247007]
[1759784778132,3.8394,234.3,234.27,7.7]
[1759784778330,3.8396,234.29,234.26,322.69247007]
[1759784778533,3.8396,234.29,234.27,7.7]
[1759784779832,3.8396,234.29,234.26,322.69247007]
[1759784780030,3.8396,234.29,234.27,7.7]
[1759784783139,7.45,234.29,234.23,104.06]
[1759784783738,7.45,234.29,234.24,7.7]
[1759784783739,3.8402,234.25,234.24,7.7]
[1759784791447,3.8404,234.23,234.22,104.06]
[1759784791647,3.8404,234.23,234.22,111.76]
[1759784798951,7.71,234.3,234.23,7.83]
[1759784800647,3.8398,234.27,234.22,107.63586122]
[1759784800946,3.8398,234.27,234.23,7.83]
[1759784801351,3.8398,234.27,234.22,107.63586122]
[1759784802551,7.71,234.3,234.23,7.83]
[1759784803051,1.95926785,234.29,234.23,7.83]
[1759784803247,3.8402,234.25,234.23,7.83]
[1759784803447,3.8402,234.25,234.22,104.06]
[1759784803648,3.8402,234.25,234.23,7.83]
[1759784803854,3.8402,234.25,234.22,104.06]
[1759784804752,3.8402,234.25,234.23,7.83]
[1759784805848,3.8402,234.25,234.22,104.06]
[1759784806454,3.8402,234.25,234.24,7.83]
[1759784811059,3.8402,234.25,234.23,111.69]
[1759784812358,3.8402,234.25,234.24,7.61]
[1759784813257,3.8402,234.25,234.23,104.08]
[1759784813456,3.8402,234.25,234.23,111.69]
[1759784813656,3.8402,234.25,234.24,7.61]
[1759784813951,7.53,234.24,234.23,104.08]
[1759784814354,11.3704,234.23,234.22,3.57586122]
[1759784814559,13.32966785,234.23,234.22,3.57586122]
[1759784815055,13.32966785,234.23,234.21,3.57586122]
[1759784815664,7.53,234.22,234.21,3.57586122]
[1759784816263,3.8407,234.21,234.2,104.06]
[1759784817059,11.3707,234.21,234.2,104.06]
[1759784817864,3.8407,234.21,234.2,104.06]
[1759784818666,3.8407,234.21,234.2,111.67]
[1759784819767,3.8404,234.23,234.21,7.61]
[1759784820365,3.8404,234.23,234.22,7.61]
[1759784826365,3.8404,234.23,234.22,12.39512477]
[1759784827774,3.8401,234.25,234.22,12.39512477]
[1759784827973,3.8401,234.25,234.24,7.61]
[1759784830574,7.53,234.24,234.23,4.78512477]
[1759784830774,11.3701,234.25,234.23,4.78512477]
[1759784831570,7.53,234.24,234.23,4.78512477]
[1759784831771,3.8401,234.25,234.23,4.78512477]
[1759784831977,11.3701,234.25,234.23,4.78512477]
[1759784832482,11.3701,234.25,234.23,12.39512477]
[1759784832777,11.3701,234.25,234.23,4.78512477]
[1759784833275,3.8401,234.25,234.23,4.78512477]
[1759784833471,3.8404,234.23,234.22,108.84512477]
[1759784836080,3.8404,234.23,234.22,116.45512477]
[1759784842383,3.8404,234.23,234.22,108.84512477]
[1759784842988,3.8404,234.23,234.22,116.06512477]
[1759784846191,3.8404,234.23,234.22,111.28]
[1759784848187,61.69116785,234.27,234.23,7.22]
[1759784848188,3.8398,234.27,234.23,7.22]
[1759784848493,3.8398,234.27,234.26,12.015776]
[1759784848692,3.8398,234.27,234.26,116.055776]
[1759784853501,3.8394,234.29,234.27,7.22]
[1759784853697,1.95926785,234.36,234.29,7.22]
[1759784853902,1.95926785,234.36,234.32,3.59328741]
[1759784854104,1.95926785,234.36,234.33,7.22]
[1759784854405,1.95926785,234.36,234.32,107.61328741]
[1759784854902,1.95926785,234.36,234.33,7.22]
[1759784855092,3.8388,234.33,234.32,114.83328741]
[1759784856700,3.8388,234.33,234.32,111.24]
[1759784857296,3.8384,234.36,234.33,7.23]
[1759784857498,3.8384,234.36,234.35,7.23]
[1759784863212,3.838,234.38,234.36,7.23]
[1759784863411,3.838,234.38,234.37,111.21]
[1759784868210,3.838,234.38,234.37,103.98]
[1759784868416,11.1283,234.36,234.34,7.71]
[1759784868612,3.8383,234.36,234.35,103.96]
[1759784868816,3.8383,234.36,234.35,49.51]
[1759784870721,3.8383,234.36,234.35,7.71]
[1759784870916,3.8383,234.36,234.35,82.61]
[1759784871112,3.8383,234.36,234.35,7.71]
[1759784873320,3.8383,234.36,234.35,111.65]
[1759784874523,3.8383,234.36,234.35,7.71]
[1759784874723,3.8383,234.36,234.35,111.65]
[1759784876724,3.8383,234.36,234.35,7.71]
[1759784876928,3.8383,234.36,234.35,111.65]
[1759784877828,3.8383,234.36,234.35,7.71]
[1759784878129,3.8383,234.36,234.35,111.65]
[1759784878724,3.8383,234.36,234.35,111.63]
[1759784880731,3.8383,234.36,234.35,7.71]
[1759784880927,3.8383,234.36,234.35,48.45]
[1759784882430,3.8383,234.36,234.35,7.71]
[1759784883027,3.8386,234.34,234.32,3.58731386]
[1759784883233,7.29,234.33,234.3,7.71]
[1759784883628,3.8393,234.3,234.29,31.06731386]
[1759784883827,3.8393,234.3,234.29,38.77731386]
[1759784886128,3.8389,234.32,234.29,31.06731386]
[1759784886328,7.29,234.42,234.31,7.71]
[1759784886528,7.29,234.42,234.35,7.71]
[1759784886728,7.29,234.42,234.36,7.71]
[1759784887735,3.8378,234.39,234.35,7.71]
[1759784887925,3.8378,234.39,234.34,61.16731386]
[1759784888127,3.8378,234.39,234.35,11.29731386]
[1759784888338,7.29,234.42,234.35,7.71]
[1759784889532,3.8382,234.37,234.35,7.71]
[1759784889735,3.8382,234.37,234.34,61.16731386]
[1759784890139,3.8382,234.37,234.35,7.71]
[1759784890437,3.8382,234.37,234.34,61.16731386]
[1759784890830,3.8382,234.37,234.35,7.71]
[1759784891031,3.8382,234.37,234.35,3.58731386]
[1759784891228,3.8382,234.37,234.36,7.71]
[1759784900248,3.8382,234.37,234.36,11.29731386]
[1759784902139,3.8382,234.37,234.36,7.71]
[1759784902851,3.8382,234.37,234.36,11.29809398]
[1759784903744,11.4282,234.37,234.36,3.58809398]
[1759784904146,3.8382,234.37,234.35,3.58809398]
[1759784904347,11.4284,234.35,234.34,3.58809398]
[1759784907552,11.4284,234.35,234.34,9.398e-05]
[1759784907753,11.4289,234.32,234.3,4.79185793]
[1759784908446,11.4289,234.32,234.29,7.29]
[1759784908447,3.8393,234.3,234.29,12.08185793]
[1759784912953,11.4293,234.3,234.29,4.79185793]
[1759784913149,11.4293,234.3,234.26,7.17768716]
[1759784913150,11.4293,234.3,234.28,12.08185793]
[1759784913455,3.8389,234.32,234.28,4.79185793]
[1759784913648,3.8389,234.32,234.29,7.29]
[1759784913853,3.8389,234.32,234.28,4.79185793]
[1759784914050,3.8389,234.32,234.29,7.29]
[1759784914351,3.8389,234.32,234.28,4.79185793]
[1759784914551,3.8389,234.32,234.29,7.29]
[1759784914748,3.8389,234.32,234.28,4.79185793]
[1759784914954,3.8389,234.32,234.29,7.29]
[1759784915156,3.8389,234.32,234.28,4.79185793]
[1759784915854,3.8389,234.32,234.29,7.29]
[1759784916048,3.8389,234.32,234.29,7.46]
[1759784917150,7.43,234.4,234.3,7.46]
[1759784917354,7.43,234.4,234.33,7.46]
[1759784918054,3.838,234.38,234.33,7.46]
[1759784918255,3.838,234.38,234.34,7.46]
[1759784918557,3.838,234.38,234.33,4.78440635]
[1759784919459,3.838,234.38,234.34,7.46]
[1759784919957,3.838,234.38,234.33,4.78440635]
[1759784920255,3.838,234.38,234.34,7.46]
[1759784920452,3.838,234.38,234.33,4.78440635]
[1759784920652,3.838,234.38,234.34,7.46]
[1759784921255,3.838,234.38,234.33,4.78440635]
[1759784921447,3.838,234.38,234.34,7.46]
[1759784921649,3.838,234.38,234.33,4.78440635]
[1759784922460,3.838,234.38,234.34,4.78440635]
[1759784922662,3.838,234.38,234.35,7.46]
[1759784922850,3.838,234.38,234.34,4.78440635]
[1759784923260,3.838,234.38,234.35,7.46]
[1759784923462,3.838,234.38,234.34,4.78440635]
[1759784923655,3.838,234.38,234.35,7.46]
[1759784923850,3.838,234.38,234.34,4.78440635]
[1759784924257,3.838,234.38,234.35,7.46]
[1759784924757,11.268,234.38,234.35,7.46]
[1759784925654,11.268,234.38,234.33,7.46]
[1759784926060,11.268,234.38,234.32,4.78440635]
[1759784926261,11.268,234.38,234.33,7.46]
[1759784926561,11.268,234.38,234.33,4.78440635]
[1759784926958,11.268,234.38,234.34,7.46]
[1759784927160,11.268,234.38,234.33,4.78440635]
[1759784927661,11.268,234.38,234.34,7.46]
[1759784927857,3.8382,234.37,234.34,7.46]
[1759784928061,3.8382,234.37,234.33,7.59]
[1759784928459,3.8382,234.37,234.34,7.59]
[1759784928660,11.1482,234.37,234.34,7.59]
[1759784929163,11.1482,234.37,234.32,4.78440635]
[1759784929364,11.1482,234.37,234.33,7.59]
[1759784929560,11.1482,234.37,234.33,4.78440635]
[1759784929767,11.1482,234.37,234.34,7.59]
[1759784930365,11.1482,234.37,234.33,4.78440635]
[1759784930566,11.1482,234.37,234.34,7.59]
[1759784930769,11.1482,234.37,234.33,4.78440635]
[1759784931165,11.1482,234.37,234.34,7.59]
[1759784931769,11.1482,234.37,234.33,4.78440635]
[1759784932164,11.1482,234.37,234.34,7.59]
[1759784932364,11.1482,234.37,234.33,4.78440635]
[1759784932770,11.1482,234.37,234.34,7.59]
[1759784935269,11.1482,234.37,234.33,4.78440635]
[1759784935469,11.1482,234.37,234.34,7.59]
[1759784936069,11.1482,234.37,234.33,4.78440635]
[1759784936272,11.1482,234.37,234.34,7.59]
[1759784936765,3.8382,234.37,234.34,7.59]
[1759784936971,11.1482,234.37,234.34,7.59]
[1759784938672,11.1482,234.37,234.33,4.78440635]
[1759784939169,11.1482,234.37,234.34,7.59]
[1759784939366,11.1482,234.37,234.33,4.78440635]
[1759784939569,11.1482,234.37,234.34,7.59]
[1759784940673,3.8378,234.39,234.34,7.59]
[1759784940972,1.95725268,234.43,234.34,7.59]
[1759784941173,1.95725268,234.43,234.35,4.78440635]
[1759784941371,1.95725268,234.43,234.36,7.59]
[1759784941872,1.95725268,234.43,234.36,4.78440635]
[1759784942072,3.8374,234.42,234.37,7.59]
[1759784942470,3.8374,234.42,234.36,4.78440635]
[1759784942872,7.31,234.41,234.37,7.59]
[1759784943374,1.95725268,234.42,234.37,7.59]
[1759784943576,13.10465268,234.42,234.36,4.78440635]
[1759784943876,1.95725268,234.42,234.36,4.78440635]
[1759784944076,9.26725268,234.42,234.36,12.37440635]
[1759784944283,9.26725268,234.42,234.36,7.59]
[1759784945671,3.8377,234.4,234.35,4.78440635]
[1759784945969,3.8377,234.4,234.36,7.59]
[1759784946174,3.8377,234.4,234.35,4.78440635]
[1759784946675,7.31,234.45,234.36,7.59]
[1759784946875,1.95725268,234.45,234.38,4.78440635]
[1759784947076,1.95725268,234.45,234.39,7.59]
[1759784947276,3.8369,234.45,234.39,7.59]
[1759784949376,3.8369,234.45,234.39,103.82]
[1759784949579,3.8369,234.45,234.4,7.59]
[1759784949780,3.8369,234.45,234.39,103.82]
[1759784950277,3.8369,234.45,234.4,7.59]